{"text_format":"3","workbook":"xlsx","n_sheets":2,"sheets":["Projektu izsekotājs","Iestatīšana"],"not_rendered":{"defined_names":6},"read":"whole","date_system":"1900"}

{"sheet":"Projektu izsekotājs","index":0,"n_rows":13,"n_cols":15,"rows_kept":13}
[null,"Projektu izsekotājs"]
[null,null,"Procentuāli virs/zem atzīmēšanai ar karodziņu: ",{"v":0.25,"d":"25%"}]
[]
[null,"Projekts","Kategorija","Kam piešķirts","Aptuvenais\nsākuma laiks","Aptuvenais \nbeigu laiks","Aptuvenais darba apjoms (stundās)","Aptuvenais ilgums (dienās)","Faktiskais \nsākuma laiks","Faktiskais\nbeigu laiks","Karodziņa ikona virs/zem faktiskā darba apjoma (stundās)","Faktiskais darba apjoms (stundās)","Karodziņa ikona virs/zem faktiskā ilguma (dienās)","Faktiskais ilgums (dienās)","Piezīmes"]
[null,"1. projekts","1. kategorija","1. darbinieks",{"$f":"TODAY()-65","v":"2017-08-13"},{"$f":"TODAY()-5","v":"2017-10-12"},210,{"$f":"IF(COUNTA('Projektu izsekotājs'!$E5,'Projektu izsekotājs'!$F5)<>2,\"\",DAYS360('Projektu izsekotājs'!$E5,'Projektu izsekotājs'!$F5,FALSE))","v":59},{"$f":"TODAY()-65","v":"2017-08-13"},{"$f":"TODAY()","v":"2017-10-17"},{"$f":"IFERROR(IF(ProjektuIzsekotājs[Faktiskais darba apjoms (stundās)]=0,\"\",IF(ABS((ProjektuIzsekotājs[[#This Row],[Faktiskais darba apjoms (stundās)]]-ProjektuIzsekotājs[[#This Row],[Aptuvenais darba apjoms (stundās)]])/ProjektuIzsekotājs[[#This Row],[Aptuvenais darba apjoms (stundās)]])>FlagPercent,1,0)),\"\")","v":1},300,{"$f":"IFERROR(IF(ProjektuIzsekotājs[Faktiskais ilgums (dienās)]=0,\"\",IF(ABS((ProjektuIzsekotājs[[#This Row],[Faktiskais ilgums (dienās)]]-ProjektuIzsekotājs[[#This Row],[Aptuvenais ilgums (dienās)]])/ProjektuIzsekotājs[[#This Row],[Aptuvenais ilgums (dienās)]])>FlagPercent,1,0)),\"\")","v":0},{"$f":"IF(COUNTA('Projektu izsekotājs'!$I5,'Projektu izsekotājs'!$J5)<>2,\"\",DAYS360('Projektu izsekotājs'!$I5,'Projektu izsekotājs'!$J5,FALSE))","v":64}]
[null,"2. projekts","2. kategorija","4. darbinieks",{"$f":"TODAY()-41","v":"2017-09-06"},{"$f":"TODAY()-10","v":"2017-10-07"},400,{"$f":"IF(COUNTA('Projektu izsekotājs'!$E6,'Projektu izsekotājs'!$F6)<>2,\"\",DAYS360('Projektu izsekotājs'!$E6,'Projektu izsekotājs'!$F6,FALSE))","v":31},{"$f":"TODAY()-41","v":"2017-09-06"},{"$f":"TODAY()-7","v":"2017-10-10"},{"$f":"IFERROR(IF(ProjektuIzsekotājs[Faktiskais darba apjoms (stundās)]=0,\"\",IF(ABS((ProjektuIzsekotājs[[#This Row],[Faktiskais darba apjoms (stundās)]]-ProjektuIzsekotājs[[#This Row],[Aptuvenais darba apjoms (stundās)]])/ProjektuIzsekotājs[[#This Row],[Aptuvenais darba apjoms (stundās)]])>FlagPercent,1,0)),\"\")","v":0},390,{"$f":"IFERROR(IF(ProjektuIzsekotājs[Faktiskais ilgums (dienās)]=0,\"\",IF(ABS((ProjektuIzsekotājs[[#This Row],[Faktiskais ilgums (dienās)]]-ProjektuIzsekotājs[[#This Row],[Aptuvenais ilgums (dienās)]])/ProjektuIzsekotājs[[#This Row],[Aptuvenais ilgums (dienās)]])>FlagPercent,1,0)),\"\")","v":0},{"$f":"IF(COUNTA('Projektu izsekotājs'!$I6,'Projektu izsekotājs'!$J6)<>2,\"\",DAYS360('Projektu izsekotājs'!$I6,'Projektu izsekotājs'!$J6,FALSE))","v":34}]
[null,"3. projekts","1. kategorija","2. darbinieks",{"$f":"TODAY()-100","v":"2017-07-09"},{"$f":"TODAY()-40","v":"2017-09-07"},500,{"$f":"IF(COUNTA('Projektu izsekotājs'!$E7,'Projektu izsekotājs'!$F7)<>2,\"\",DAYS360('Projektu izsekotājs'!$E7,'Projektu izsekotājs'!$F7,FALSE))","v":58},{"$f":"TODAY()-100","v":"2017-07-09"},{"$f":"TODAY()-27","v":"2017-09-20"},{"$f":"IFERROR(IF(ProjektuIzsekotājs[Faktiskais darba apjoms (stundās)]=0,\"\",IF(ABS((ProjektuIzsekotājs[[#This Row],[Faktiskais darba apjoms (stundās)]]-ProjektuIzsekotājs[[#This Row],[Aptuvenais darba apjoms (stundās)]])/ProjektuIzsekotājs[[#This Row],[Aptuvenais darba apjoms (stundās)]])>FlagPercent,1,0)),\"\")","v":0},500,{"$f":"IFERROR(IF(ProjektuIzsekotājs[Faktiskais ilgums (dienās)]=0,\"\",IF(ABS((ProjektuIzsekotājs[[#This Row],[Faktiskais ilgums (dienās)]]-ProjektuIzsekotājs[[#This Row],[Aptuvenais ilgums (dienās)]])/ProjektuIzsekotājs[[#This Row],[Aptuvenais ilgums (dienās)]])>FlagPercent,1,0)),\"\")","v":0},{"$f":"IF(COUNTA('Projektu izsekotājs'!$I7,'Projektu izsekotājs'!$J7)<>2,\"\",DAYS360('Projektu izsekotājs'!$I7,'Projektu izsekotājs'!$J7,FALSE))","v":71}]
[null,"4. projekts","2. kategorija","3. darbinieks",{"$f":"TODAY()-90","v":"2017-07-19"},{"$f":"TODAY()-80","v":"2017-07-29"},250,{"$f":"IF(COUNTA('Projektu izsekotājs'!$E8,'Projektu izsekotājs'!$F8)<>2,\"\",DAYS360('Projektu izsekotājs'!$E8,'Projektu izsekotājs'!$F8,FALSE))","v":10},{"$f":"TODAY()-90","v":"2017-07-19"},{"$f":"TODAY()-71","v":"2017-08-07"},{"$f":"IFERROR(IF(ProjektuIzsekotājs[Faktiskais darba apjoms (stundās)]=0,\"\",IF(ABS((ProjektuIzsekotājs[[#This Row],[Faktiskais darba apjoms (stundās)]]-ProjektuIzsekotājs[[#This Row],[Aptuvenais darba apjoms (stundās)]])/ProjektuIzsekotājs[[#This Row],[Aptuvenais darba apjoms (stundās)]])>FlagPercent,1,0)),\"\")","v":0},276,{"$f":"IFERROR(IF(ProjektuIzsekotājs[Faktiskais ilgums (dienās)]=0,\"\",IF(ABS((ProjektuIzsekotājs[[#This Row],[Faktiskais ilgums (dienās)]]-ProjektuIzsekotājs[[#This Row],[Aptuvenais ilgums (dienās)]])/ProjektuIzsekotājs[[#This Row],[Aptuvenais ilgums (dienās)]])>FlagPercent,1,0)),\"\")","v":1},{"$f":"IF(COUNTA('Projektu izsekotājs'!$I8,'Projektu izsekotājs'!$J8)<>2,\"\",DAYS360('Projektu izsekotājs'!$I8,'Projektu izsekotājs'!$J8,FALSE))","v":18}]
[null,"5. projekts","3. kategorija","2. darbinieks",{"$f":"TODAY()-90","v":"2017-07-19"},{"$f":"TODAY()-50","v":"2017-08-28"},300,{"$f":"IF(COUNTA('Projektu izsekotājs'!$E9,'Projektu izsekotājs'!$F9)<>2,\"\",DAYS360('Projektu izsekotājs'!$E9,'Projektu izsekotājs'!$F9,FALSE))","v":39},{"$f":"TODAY()-90","v":"2017-07-19"},{"$f":"TODAY()-44","v":"2017-09-03"},{"$f":"IFERROR(IF(ProjektuIzsekotājs[Faktiskais darba apjoms (stundās)]=0,\"\",IF(ABS((ProjektuIzsekotājs[[#This Row],[Faktiskais darba apjoms (stundās)]]-ProjektuIzsekotājs[[#This Row],[Aptuvenais darba apjoms (stundās)]])/ProjektuIzsekotājs[[#This Row],[Aptuvenais darba apjoms (stundās)]])>FlagPercent,1,0)),\"\")","v":0},310,{"$f":"IFERROR(IF(ProjektuIzsekotājs[Faktiskais ilgums (dienās)]=0,\"\",IF(ABS((ProjektuIzsekotājs[[#This Row],[Faktiskais ilgums (dienās)]]-ProjektuIzsekotājs[[#This Row],[Aptuvenais ilgums (dienās)]])/ProjektuIzsekotājs[[#This Row],[Aptuvenais ilgums (dienās)]])>FlagPercent,1,0)),\"\")","v":0},{"$f":"IF(COUNTA('Projektu izsekotājs'!$I9,'Projektu izsekotājs'!$J9)<>2,\"\",DAYS360('Projektu izsekotājs'!$I9,'Projektu izsekotājs'!$J9,FALSE))","v":44}]
[null,"6. projekts","4. kategorija","4. darbinieks",{"$f":"TODAY()-60","v":"2017-08-18"},{"$f":"TODAY()-50","v":"2017-08-28"},500,{"$f":"IF(COUNTA('Projektu izsekotājs'!$E10,'Projektu izsekotājs'!$F10)<>2,\"\",DAYS360('Projektu izsekotājs'!$E10,'Projektu izsekotājs'!$F10,FALSE))","v":10},{"$f":"TODAY()-60","v":"2017-08-18"},{"$f":"TODAY()-45","v":"2017-09-02"},{"$f":"IFERROR(IF(ProjektuIzsekotājs[Faktiskais darba apjoms (stundās)]=0,\"\",IF(ABS((ProjektuIzsekotājs[[#This Row],[Faktiskais darba apjoms (stundās)]]-ProjektuIzsekotājs[[#This Row],[Aptuvenais darba apjoms (stundās)]])/ProjektuIzsekotājs[[#This Row],[Aptuvenais darba apjoms (stundās)]])>FlagPercent,1,0)),\"\")","v":0},510,{"$f":"IFERROR(IF(ProjektuIzsekotājs[Faktiskais ilgums (dienās)]=0,\"\",IF(ABS((ProjektuIzsekotājs[[#This Row],[Faktiskais ilgums (dienās)]]-ProjektuIzsekotājs[[#This Row],[Aptuvenais ilgums (dienās)]])/ProjektuIzsekotājs[[#This Row],[Aptuvenais ilgums (dienās)]])>FlagPercent,1,0)),\"\")","v":1},{"$f":"IF(COUNTA('Projektu izsekotājs'!$I10,'Projektu izsekotājs'!$J10)<>2,\"\",DAYS360('Projektu izsekotājs'!$I10,'Projektu izsekotājs'!$J10,FALSE))","v":14}]
[null,"7. projekts","5. kategorija","1. darbinieks",{"$f":"TODAY()-44","v":"2017-09-03"},{"$f":"TODAY()-20","v":"2017-09-27"},750,{"$f":"IF(COUNTA('Projektu izsekotājs'!$E11,'Projektu izsekotājs'!$F11)<>2,\"\",DAYS360('Projektu izsekotājs'!$E11,'Projektu izsekotājs'!$F11,FALSE))","v":24},{"$f":"TODAY()-44","v":"2017-09-03"},{"$f":"TODAY()-15","v":"2017-10-02"},{"$f":"IFERROR(IF(ProjektuIzsekotājs[Faktiskais darba apjoms (stundās)]=0,\"\",IF(ABS((ProjektuIzsekotājs[[#This Row],[Faktiskais darba apjoms (stundās)]]-ProjektuIzsekotājs[[#This Row],[Aptuvenais darba apjoms (stundās)]])/ProjektuIzsekotājs[[#This Row],[Aptuvenais darba apjoms (stundās)]])>FlagPercent,1,0)),\"\")","v":0},790,{"$f":"IFERROR(IF(ProjektuIzsekotājs[Faktiskais ilgums (dienās)]=0,\"\",IF(ABS((ProjektuIzsekotājs[[#This Row],[Faktiskais ilgums (dienās)]]-ProjektuIzsekotājs[[#This Row],[Aptuvenais ilgums (dienās)]])/ProjektuIzsekotājs[[#This Row],[Aptuvenais ilgums (dienās)]])>FlagPercent,1,0)),\"\")","v":0},{"$f":"IF(COUNTA('Projektu izsekotājs'!$I11,'Projektu izsekotājs'!$J11)<>2,\"\",DAYS360('Projektu izsekotājs'!$I11,'Projektu izsekotājs'!$J11,FALSE))","v":29}]
[null,"8. projekts","2. kategorija","1. darbinieks",{"$f":"TODAY()-39","v":"2017-09-08"},{"$f":"TODAY()","v":"2017-10-17"},450,{"$f":"IF(COUNTA('Projektu izsekotājs'!$E12,'Projektu izsekotājs'!$F12)<>2,\"\",DAYS360('Projektu izsekotājs'!$E12,'Projektu izsekotājs'!$F12,FALSE))","v":39},{"$f":"TODAY()-45","v":"2017-09-02"},{"$f":"TODAY()-5","v":"2017-10-12"},{"$f":"IFERROR(IF(ProjektuIzsekotājs[Faktiskais darba apjoms (stundās)]=0,\"\",IF(ABS((ProjektuIzsekotājs[[#This Row],[Faktiskais darba apjoms (stundās)]]-ProjektuIzsekotājs[[#This Row],[Aptuvenais darba apjoms (stundās)]])/ProjektuIzsekotājs[[#This Row],[Aptuvenais darba apjoms (stundās)]])>FlagPercent,1,0)),\"\")","v":0},430,{"$f":"IFERROR(IF(ProjektuIzsekotājs[Faktiskais ilgums (dienās)]=0,\"\",IF(ABS((ProjektuIzsekotājs[[#This Row],[Faktiskais ilgums (dienās)]]-ProjektuIzsekotājs[[#This Row],[Aptuvenais ilgums (dienās)]])/ProjektuIzsekotājs[[#This Row],[Aptuvenais ilgums (dienās)]])>FlagPercent,1,0)),\"\")","v":0},{"$f":"IF(COUNTA('Projektu izsekotājs'!$I12,'Projektu izsekotājs'!$J12)<>2,\"\",DAYS360('Projektu izsekotājs'!$I12,'Projektu izsekotājs'!$J12,FALSE))","v":40}]
[null,"9. projekts","4. kategorija","1. darbinieks","2016-02-05","2016-06-09",250,{"$f":"IF(COUNTA('Projektu izsekotājs'!$E13,'Projektu izsekotājs'!$F13)<>2,\"\",DAYS360('Projektu izsekotājs'!$E13,'Projektu izsekotājs'!$F13,FALSE))","v":124},"2016-03-05","2016-05-05",{"$f":"IFERROR(IF(ProjektuIzsekotājs[Faktiskais darba apjoms (stundās)]=0,\"\",IF(ABS((ProjektuIzsekotājs[[#This Row],[Faktiskais darba apjoms (stundās)]]-ProjektuIzsekotājs[[#This Row],[Aptuvenais darba apjoms (stundās)]])/ProjektuIzsekotājs[[#This Row],[Aptuvenais darba apjoms (stundās)]])>FlagPercent,1,0)),\"\")","v":0},200,{"$f":"IFERROR(IF(ProjektuIzsekotājs[Faktiskais ilgums (dienās)]=0,\"\",IF(ABS((ProjektuIzsekotājs[[#This Row],[Faktiskais ilgums (dienās)]]-ProjektuIzsekotājs[[#This Row],[Aptuvenais ilgums (dienās)]])/ProjektuIzsekotājs[[#This Row],[Aptuvenais ilgums (dienās)]])>FlagPercent,1,0)),\"\")","v":1},{"$f":"IF(COUNTA('Projektu izsekotājs'!$I13,'Projektu izsekotājs'!$J13)<>2,\"\",DAYS360('Projektu izsekotājs'!$I13,'Projektu izsekotājs'!$J13,FALSE))","v":60}]

{"sheet":"Iestatīšana","index":1,"n_rows":10,"n_cols":3,"rows_kept":10}
[null,"Iestatīšana"]
[]
[]
[null,"Kategorijas nosaukums","Darbinieka vārds"]
[null,"1. kategorija","1. darbinieks"]
[null,"2. kategorija","2. darbinieks"]
[null,"3. kategorija","3. darbinieks"]
[null,"4. kategorija","4. darbinieks"]
[null,"5. kategorija","5. darbinieks"]
[null,"6. kategorija","6. darbinieks"]